[Event "Early-Titled-Tuesday-Blitz-December-26-2023"]
[Site "Chess.com"]
[Date "2023.12.26"]
[Round "10"]
[White "Kimster98"]
[Black "Aleksandar-Topalov"]
[Result "1-0"]
[WhiteElo "2588"]
[BlackElo "2375"]
[TimeControl "180+1"]
[EndTime "9:57:03 PST"]
[Termination "Kimster98 won on time"]

1. c4 {[%clk 0:02:47.8]} 1... Nf6 {[%clk 0:02:59.3]} 2. Nc3 {[%clk 0:02:46.6]}
2... g6 {[%clk 0:02:55.9]} 3. g3 {[%clk 0:02:43.4]} 3... Bg7 {[%clk 0:02:55.7]}
4. Bg2 {[%clk 0:02:44]} 4... O-O {[%clk 0:02:55.9]} 5. d3 {[%clk 0:02:43.5]}
5... c5 {[%clk 0:02:52.7]} 6. Bf4 {[%clk 0:02:42.2]} 6... d6 {[%clk 0:02:49.6]}
7. Qd2 {[%clk 0:02:41.6]} 7... Nc6 {[%clk 0:02:48.2]} 8. Bh6 {[%clk 0:02:40.8]}
8... Nd4 {[%clk 0:02:47.3]} 9. Bxg7 {[%clk 0:02:38.2]} 9... Kxg7 {[%clk
0:02:46.9]} 10. e3 {[%clk 0:02:38.3]} 10... Nc6 {[%clk 0:02:45.6]} 11. Nge2
{[%clk 0:02:37.9]} 11... a6 {[%clk 0:02:44.5]} 12. d4 {[%clk 0:02:37.7]} 12...
Bd7 {[%clk 0:02:22.6]} 13. O-O {[%clk 0:02:31.7]} 13... Rb8 {[%clk 0:02:22]} 14.
Rfd1 {[%clk 0:02:16.8]} 14... Qa5 {[%clk 0:02:06.1]} 15. a3 {[%clk 0:02:12.4]}
15... Bf5 {[%clk 0:01:24.3]} 16. e4 {[%clk 0:01:29.6]} 16... Bg4 {[%clk
0:01:22.6]} 17. f3 {[%clk 0:01:29.4]} 17... cxd4 {[%clk 0:01:17.5]} 18. Nxd4
{[%clk 0:01:29]} 18... Bd7 {[%clk 0:01:10.7]} 19. b4 {[%clk 0:01:15.7]} 19...
Qc7 {[%clk 0:01:06.3]} 20. Rac1 {[%clk 0:01:10.3]} 20... Nxd4 {[%clk 0:01:03]}
21. Qxd4 {[%clk 0:01:10.9]} 21... Kg8 {[%clk 0:01:03.1]} 22. f4 {[%clk
0:01:01.7]} 22... Be6 {[%clk 0:00:45.7]} 23. Rf1 {[%clk 0:00:53.7]} 23... Qxc4
{[%clk 0:00:40.5]} 24. Qxc4 {[%clk 0:00:53.2]} 24... Bxc4 {[%clk 0:00:40.7]} 25.
Rfe1 {[%clk 0:00:53.8]} 25... b5 {[%clk 0:00:34.7]} 26. e5 {[%clk 0:00:50.7]}
26... dxe5 {[%clk 0:00:34.9]} 27. Rxe5 {[%clk 0:00:49.1]} 27... e6 {[%clk
0:00:30.1]} 28. Rc5 {[%clk 0:00:48.9]} 28... Rfc8 {[%clk 0:00:27.2]} 29. Ne4
{[%clk 0:00:46.3]} 29... Nxe4 {[%clk 0:00:23.9]} 30. Bxe4 {[%clk 0:00:47.2]}
30... Rxc5 {[%clk 0:00:19.9]} 31. bxc5 {[%clk 0:00:48.1]} 31... Rc8 {[%clk
0:00:20]} 32. c6 {[%clk 0:00:48.5]} 32... Kf8 {[%clk 0:00:20.4]} 33. a4 {[%clk
0:00:44]} 33... Ke7 {[%clk 0:00:19.6]} 34. axb5 {[%clk 0:00:44.4]} 34... axb5
{[%clk 0:00:20]} 35. Ra1 {[%clk 0:00:45.1]} 35... Bd5 {[%clk 0:00:18.2]} 36.
Ra7+ {[%clk 0:00:45]} 36... Kf6 {[%clk 0:00:17.5]} 37. Bxd5 {[%clk 0:00:45.2]}
37... exd5 {[%clk 0:00:17.8]} 38. Rb7 {[%clk 0:00:39.8]} 38... Ke6 {[%clk
0:00:16.8]} 39. Rxb5 {[%clk 0:00:38.7]} 39... Rxc6 {[%clk 0:00:16.5]} 40. h3
{[%clk 0:00:25.5]} 40... h5 {[%clk 0:00:16.5]} 41. Kf2 {[%clk 0:00:25.5]} 41...
Rc2+ {[%clk 0:00:16.4]} 42. Kf3 {[%clk 0:00:25.9]} 42... Rc3+ {[%clk 0:00:16.5]}
43. Kf2 {[%clk 0:00:26.1]} 43... Rc2+ {[%clk 0:00:14.2]} 44. Kf3 {[%clk
0:00:26.1]} 44... Rc6 {[%clk 0:00:13.7]} 45. Ke3 {[%clk 0:00:23.8]} 45... Rc3+
{[%clk 0:00:12.5]} 46. Kf2 {[%clk 0:00:24.1]} 46... Rd3 {[%clk 0:00:12.1]} 47.
Rb6+ {[%clk 0:00:21.1]} 47... Kf5 {[%clk 0:00:11.9]} 48. Rb7 {[%clk 0:00:21]}
48... f6 {[%clk 0:00:11.7]} 49. Rb6 {[%clk 0:00:20.3]} 49... d4 {[%clk 0:00:08]}
50. Rd6 {[%clk 0:00:19.1]} 50... Ke4 {[%clk 0:00:07.3]} 51. Rxf6 {[%clk
0:00:18.8]} 51... Rd2+ {[%clk 0:00:06.8]} 52. Ke1 {[%clk 0:00:19]} 52... Rg2
{[%clk 0:00:06]} 53. Rxg6 {[%clk 0:00:18.9]} 53... d3 {[%clk 0:00:06]} 54. Re6+
{[%clk 0:00:17.8]} 54... Kf3 {[%clk 0:00:06.2]} 55. f5 {[%clk 0:00:17.6]} 55...
Rxg3 {[%clk 0:00:02.2]} 56. f6 {[%clk 0:00:17.4]} 56... Rg8 {[%clk 0:00:02.3]}
57. f7 {[%clk 0:00:15.9]} 57... Rf8 {[%clk 0:00:02.4]} 58. Kd2 {[%clk
0:00:09.3]} 58... h4 {[%clk 0:00:01]} 59. Kxd3 {[%clk 0:00:08]} 59... Rxf7
{[%clk 0:00:01.4]} 60. Re3+ {[%clk 0:00:08.5]} 60... Kg2 {[%clk 0:00:01.3]} 61.
Ke2 {[%clk 0:00:09]} 61... Rg7 {[%clk 0:00:01.5]} 62. Ke1 {[%clk 0:00:08.4]}
62... Rg3 {[%clk 0:00:01.3]} 63. Ke2 {[%clk 0:00:09]} 1-0

[Event "Early-Titled-Tuesday-Blitz-December-26-2023"]
[Site "Chess.com"]
[Date "2023.12.26"]
[Round "10"]
[White "bazar-wokzal"]
[Black "suyu28"]
[Result "1/2-1/2"]
[WhiteElo "2648"]
[BlackElo "2782"]
[TimeControl "180+1"]
[EndTime "9:57:05 PST"]
[Termination "Game drawn - insufficient material"]

1. e4 {[%clk 0:03:00.9]} 1... c5 {[%clk 0:02:58.6]} 2. c3 {[%clk 0:03:00.6]}
2... Nf6 {[%clk 0:02:56.3]} 3. e5 {[%clk 0:03:00.8]} 3... Nd5 {[%clk 0:02:57]}
4. d4 {[%clk 0:03:01.2]} 4... cxd4 {[%clk 0:02:55.8]} 5. cxd4 {[%clk 0:03:02.1]}
5... d6 {[%clk 0:02:55.9]} 6. Bc4 {[%clk 0:03:01.8]} 6... e6 {[%clk 0:02:56.2]}
7. Nf3 {[%clk 0:03:01.3]} 7... Nc6 {[%clk 0:02:56.5]} 8. O-O {[%clk 0:03:01.5]}
8... dxe5 {[%clk 0:02:53.9]} 9. dxe5 {[%clk 0:03:01.3]} 9... Be7 {[%clk
0:02:51.6]} 10. Qe2 {[%clk 0:03:00.7]} 10... Nb6 {[%clk 0:02:47.2]} 11. Rd1
{[%clk 0:02:57.9]} 11... Qc7 {[%clk 0:02:46.9]} 12. Bd3 {[%clk 0:02:57.4]} 12...
O-O {[%clk 0:02:44.3]} 13. Nc3 {[%clk 0:02:56.8]} 13... a6 {[%clk 0:02:44.2]}
14. Qe4 {[%clk 0:02:20.6]} 14... g6 {[%clk 0:02:43.8]} 15. Bh6 {[%clk
0:02:19.4]} 15... Rd8 {[%clk 0:02:43.6]} 16. h4 {[%clk 0:02:19.7]} 16... Bd7
{[%clk 0:02:41.3]} 17. h5 {[%clk 0:02:19.1]} 17... Be8 {[%clk 0:02:41.3]} 18.
hxg6 {[%clk 0:02:11]} 18... hxg6 {[%clk 0:02:40]} 19. Rac1 {[%clk 0:01:53.9]}
19... Nd5 {[%clk 0:02:39]} 20. Nxd5 {[%clk 0:01:51.2]} 20... Rxd5 {[%clk
0:02:38.8]} 21. Bg5 {[%clk 0:01:30.4]} 21... Bxg5 {[%clk 0:02:36]} 22. Nxg5
{[%clk 0:01:30.4]} 22... Qxe5 {[%clk 0:02:36.7]} 23. Qxe5 {[%clk 0:01:16.1]}
23... Rxe5 {[%clk 0:02:37]} 24. f4 {[%clk 0:01:12.9]} 24... Ra5 {[%clk 0:02:32]}
25. a3 {[%clk 0:01:10.3]} 25... Rd8 {[%clk 0:02:31.5]} 26. Be4 {[%clk
0:01:04.1]} 26... Rc5 {[%clk 0:02:20.1]} 27. Rb1 {[%clk 0:00:36.4]} 27... Rc4
{[%clk 0:02:05.8]} 28. Rxd8 {[%clk 0:00:30.6]} 28... Nxd8 {[%clk 0:02:06]} 29.
Rd1 {[%clk 0:00:31]} 29... Nc6 {[%clk 0:02:06.6]} 30. Kf2 {[%clk 0:00:28.1]}
30... Kf8 {[%clk 0:02:05.9]} 31. Ke3 {[%clk 0:00:27.7]} 31... Ke7 {[%clk
0:02:06]} 32. Rh1 {[%clk 0:00:26.3]} 32... Rc5 {[%clk 0:02:01.4]} 33. Rh7 {[%clk
0:00:25.8]} 33... Kd8 {[%clk 0:01:46.5]} 34. Bxg6 {[%clk 0:00:19.7]} 34... Ne7
{[%clk 0:01:39.7]} 35. Bxf7 {[%clk 0:00:17.6]} 35... Bxf7 {[%clk 0:01:36.4]} 36.
Nxf7+ {[%clk 0:00:17.3]} 36... Ke8 {[%clk 0:01:34.9]} 37. Nd6+ {[%clk
0:00:16.8]} 37... Kd7 {[%clk 0:01:34.8]} 38. Ne4 {[%clk 0:00:14.5]} 38... Rc2
{[%clk 0:01:34.3]} 39. b4 {[%clk 0:00:13.3]} 39... Kd8 {[%clk 0:01:25.4]} 40.
Nc5 {[%clk 0:00:13]} 40... Nd5+ {[%clk 0:01:17.5]} 41. Ke4 {[%clk 0:00:12.7]}
41... Nf6+ {[%clk 0:01:12.9]} 42. Kd3 {[%clk 0:00:11.9]} 42... Rxg2 {[%clk
0:01:09]} 43. Rxb7 {[%clk 0:00:10.6]} 43... Rg3+ {[%clk 0:01:06.5]} 44. Kd4
{[%clk 0:00:10.8]} 44... Rxa3 {[%clk 0:01:05.5]} 45. Nxe6+ {[%clk 0:00:10.8]}
45... Kc8 {[%clk 0:01:05.8]} 46. Rf7 {[%clk 0:00:10.7]} 46... Ng4 {[%clk
0:01:01.6]} 47. Nc5 {[%clk 0:00:07.9]} 47... a5 {[%clk 0:00:58.4]} 48. b5 {[%clk
0:00:07.7]} 48... Ra1 {[%clk 0:00:53.2]} 49. b6 {[%clk 0:00:07.9]} 49... Rd1+
{[%clk 0:00:53.3]} 50. Ke4 {[%clk 0:00:07.7]} 50... Kd8 {[%clk 0:00:46.9]} 51.
b7 {[%clk 0:00:06.4]} 51... Rb1 {[%clk 0:00:46.6]} 52. Na6 {[%clk 0:00:03.4]}
52... Ke8 {[%clk 0:00:40.9]} 53. Rg7 {[%clk 0:00:03.1]} 53... Nf6+ {[%clk
0:00:40.9]} 54. Kf5 {[%clk 0:00:03.5]} 54... Nd7 {[%clk 0:00:40.1]} 55. Rxd7
{[%clk 0:00:03]} 55... Kxd7 {[%clk 0:00:39.9]} 56. b8=Q {[%clk 0:00:03.2]} 56...
Rxb8 {[%clk 0:00:40.8]} 57. Nxb8+ {[%clk 0:00:04]} 57... Kd6 {[%clk 0:00:41.3]}
58. Kg6 {[%clk 0:00:03.6]} 58... a4 {[%clk 0:00:41.4]} 59. f5 {[%clk 0:00:03.8]}
59... a3 {[%clk 0:00:41.8]} 60. f6 {[%clk 0:00:04.4]} 60... a2 {[%clk
0:00:41.8]} 61. f7 {[%clk 0:00:05]} 61... Ke7 {[%clk 0:00:31.5]} 62. Nd7 {[%clk
0:00:04.9]} 62... a1=Q {[%clk 0:00:21.7]} 63. f8=Q+ {[%clk 0:00:05.1]} 63...
Kxd7 {[%clk 0:00:22.2]} 64. Qg7+ {[%clk 0:00:05.7]} 64... Qxg7+ {[%clk
0:00:20.9]} 65. Kxg7 {[%clk 0:00:06.6]} 1/2-1/2

[Event "Early-Titled-Tuesday-Blitz-December-26-2023"]
[Site "Chess.com"]
[Date "2023.12.26"]
[Round "10"]
[White "wild3000"]
[Black "deribas12345"]
[Result "1-0"]
[WhiteElo "2429"]
[BlackElo "2519"]
[TimeControl "180+1"]
[EndTime "9:57:07 PST"]
[Termination "wild3000 won on time"]

1. d4 {[%clk 0:02:58.3]} 1... Nf6 {[%clk 0:02:58.9]} 2. Nf3 {[%clk 0:02:58.4]}
2... c5 {[%clk 0:02:59.8]} 3. e3 {[%clk 0:02:57.7]} 3... g6 {[%clk 0:02:59.4]}
4. c4 {[%clk 0:02:57.7]} 4... Bg7 {[%clk 0:03:00.2]} 5. Nc3 {[%clk 0:02:58.1]}
5... cxd4 {[%clk 0:02:59.9]} 6. Nxd4 {[%clk 0:02:57.9]} 6... O-O {[%clk
0:03:00.8]} 7. Be2 {[%clk 0:02:58]} 7... Nc6 {[%clk 0:02:58.8]} 8. O-O {[%clk
0:02:57.9]} 8... d6 {[%clk 0:02:58.1]} 9. b3 {[%clk 0:02:56.9]} 9... a6 {[%clk
0:02:57.5]} 10. Bb2 {[%clk 0:02:56.8]} 10... Bd7 {[%clk 0:02:57.5]} 11. Bf3
{[%clk 0:02:56.2]} 11... Rc8 {[%clk 0:02:55.9]} 12. Nd5 {[%clk 0:02:49.1]} 12...
Nxd5 {[%clk 0:02:52.3]} 13. Bxd5 {[%clk 0:02:45.5]} 13... Nxd4 {[%clk 0:02:37]}
14. exd4 {[%clk 0:02:46.4]} 14... Bc6 {[%clk 0:02:28.7]} 15. Bxc6 {[%clk
0:02:37.3]} 15... bxc6 {[%clk 0:02:28.4]} 16. Qe2 {[%clk 0:02:36.9]} 16... Re8
{[%clk 0:02:20.3]} 17. h4 {[%clk 0:02:36]} 17... Qa5 {[%clk 0:02:16.8]} 18. a3
{[%clk 0:02:30.8]} 18... d5 {[%clk 0:02:12.8]} 19. b4 {[%clk 0:02:26.7]} 19...
Qa4 {[%clk 0:02:10.2]} 20. Rac1 {[%clk 0:02:22.7]} 20... e6 {[%clk 0:02:00.2]}
21. h5 {[%clk 0:02:19.4]} 21... Red8 {[%clk 0:01:43.9]} 22. g3 {[%clk
0:02:06.7]} 22... gxh5 {[%clk 0:01:36.9]} 23. Kg2 {[%clk 0:02:05.5]} 23... dxc4
{[%clk 0:01:31]} 24. Qxc4 {[%clk 0:02:03.4]} 24... Qb5 {[%clk 0:01:26.2]} 25.
Rh1 {[%clk 0:01:57.9]} 25... Rd5 {[%clk 0:01:01.4]} 26. Rh4 {[%clk 0:01:52.6]}
26... Qxc4 {[%clk 0:00:46.3]} 27. Rxc4 {[%clk 0:01:52.4]} 27... a5 {[%clk
0:00:46.2]} 28. Bc3 {[%clk 0:01:40.2]} 28... axb4 {[%clk 0:00:32.9]} 29. Bxb4
{[%clk 0:01:38.8]} 29... Bf8 {[%clk 0:00:30.2]} 30. Bc5 {[%clk 0:01:23.9]} 30...
Bxc5 {[%clk 0:00:26.8]} 31. dxc5 {[%clk 0:01:17.5]} 31... Ra8 {[%clk 0:00:24.9]}
32. Rc3 {[%clk 0:01:12.9]} 32... Ra5 {[%clk 0:00:23.8]} 33. Rhc4 {[%clk
0:01:12.9]} 33... Kf8 {[%clk 0:00:24.1]} 34. a4 {[%clk 0:01:12.3]} 34... Ke7
{[%clk 0:00:23.5]} 35. Kf3 {[%clk 0:01:12.5]} 35... Kf6 {[%clk 0:00:22.7]} 36.
Ke3 {[%clk 0:01:09.2]} 36... Ra8 {[%clk 0:00:20.2]} 37. Rf4+ {[%clk 0:01:04.6]}
37... Rf5 {[%clk 0:00:19.4]} 38. Rxf5+ {[%clk 0:01:00.8]} 38... Kxf5 {[%clk
0:00:19.4]} 39. Kd4 {[%clk 0:01:01.2]} 39... f6 {[%clk 0:00:12.5]} 40. Ra3
{[%clk 0:00:59.4]} 40... Kg4 {[%clk 0:00:10]} 41. a5 {[%clk 0:00:57.4]} 41...
Ra6 {[%clk 0:00:10.1]} 42. Kc4 {[%clk 0:00:56.7]} 42... h4 {[%clk 0:00:10.4]}
43. gxh4 {[%clk 0:00:56.7]} 43... Kxh4 {[%clk 0:00:10.9]} 44. Kb4 {[%clk
0:00:53.4]} 44... h5 {[%clk 0:00:08.1]} 45. Rg3 {[%clk 0:00:47.8]} 45... f5
{[%clk 0:00:08.5]} 46. Rg7 {[%clk 0:00:33.4]} 46... e5 {[%clk 0:00:07.4]} 47.
Rb7 {[%clk 0:00:29.4]} 47... f4 {[%clk 0:00:07]} 48. Rb6 {[%clk 0:00:29.3]}
48... Ra8 {[%clk 0:00:07.1]} 49. Rxc6 {[%clk 0:00:29.5]} 49... Kg4 {[%clk
0:00:06.4]} 50. a6 {[%clk 0:00:26.4]} 50... e4 {[%clk 0:00:03.7]} 51. Kb5 {[%clk
0:00:24.9]} 51... Kf3 {[%clk 0:00:02.9]} 52. Rf6 {[%clk 0:00:23.2]} 52... h4
{[%clk 0:00:01.6]} 53. Kb6 {[%clk 0:00:21.5]} 53... h3 {[%clk 0:00:02.5]} 54.
Rh6 {[%clk 0:00:20]} 54... e3 {[%clk 0:00:01.8]} 55. fxe3 {[%clk 0:00:19.9]}
55... fxe3 {[%clk 0:00:02.2]} 56. Rxh3+ {[%clk 0:00:19.9]} 56... Kf2 {[%clk
0:00:02.7]} 57. Kb7 {[%clk 0:00:19.4]} 57... Rf8 {[%clk 0:00:02]} 58. c6 {[%clk
0:00:16.1]} 58... e2 {[%clk 0:00:02.3]} 59. Rh2+ {[%clk 0:00:16.1]} 59... Ke3
{[%clk 0:00:02.7]} 60. Rxe2+ {[%clk 0:00:15.1]} 60... Kxe2 {[%clk 0:00:03]} 61.
c7 {[%clk 0:00:15.4]} 61... Rf7 {[%clk 0:00:02.4]} 62. a7 {[%clk 0:00:15.6]} 1-0

[Event "Early-Titled-Tuesday-Blitz-December-26-2023"]
[Site "Chess.com"]
[Date "2023.12.26"]
[Round "10"]
[White "thechesscorner64"]
[Black "Barbix1"]
[Result "0-1"]
[WhiteElo "2402"]
[BlackElo "2300"]
[TimeControl "180+1"]
[EndTime "9:57:11 PST"]
[Termination "Barbix1 won by checkmate"]

1. e4 {[%clk 0:03:00.9]} 1... c5 {[%clk 0:02:59.9]} 2. Nf3 {[%clk 0:02:45.3]}
2... g6 {[%clk 0:02:59.4]} 3. c3 {[%clk 0:02:43.9]} 3... d5 {[%clk 0:02:58.5]}
4. e5 {[%clk 0:02:41.3]} 4... Bg4 {[%clk 0:02:55.6]} 5. d4 {[%clk 0:02:41.1]}
5... cxd4 {[%clk 0:02:44.7]} 6. cxd4 {[%clk 0:02:39.1]} 6... Qb6 {[%clk
0:02:41.9]} 7. Be2 {[%clk 0:02:33.6]} 7... Nc6 {[%clk 0:02:37.2]} 8. Nc3 {[%clk
0:02:32.8]} 8... Bxf3 {[%clk 0:02:09.1]} 9. Bxf3 {[%clk 0:02:31.4]} 9... Qxd4
{[%clk 0:02:09.2]} 10. Qxd4 {[%clk 0:01:56.6]} 10... Nxd4 {[%clk 0:02:10.1]} 11.
Bd1 {[%clk 0:01:56.4]} 11... e6 {[%clk 0:01:59]} 12. Ba4+ {[%clk 0:01:56.3]}
12... Nc6 {[%clk 0:01:51]} 13. Nb5 {[%clk 0:01:46.5]} 13... Kd7 {[%clk
0:01:23.6]} 14. Bf4 {[%clk 0:01:36.4]} 14... f6 {[%clk 0:00:57]} 15. exf6 {[%clk
0:01:25.6]} 15... Nxf6 {[%clk 0:00:57.9]} 16. O-O {[%clk 0:01:25.4]} 16... a6
{[%clk 0:00:39.1]} 17. Nd4 {[%clk 0:01:18.6]} 17... Bd6 {[%clk 0:00:39.3]} 18.
Bh6 {[%clk 0:01:01.1]} 18... Ng4 {[%clk 0:00:30]} 19. Bg7 {[%clk 0:00:26.5]}
19... Rhg8 {[%clk 0:00:29.8]} 20. Nxc6 {[%clk 0:00:26]} 20... bxc6 {[%clk
0:00:29.6]} 21. Bd4 {[%clk 0:00:23.5]} 21... Bxh2+ {[%clk 0:00:25]} 22. Kh1
{[%clk 0:00:23.3]} 22... Bd6 {[%clk 0:00:20.6]} 23. Rac1 {[%clk 0:00:22.8]}
23... Rac8 {[%clk 0:00:17.4]} 24. f3 {[%clk 0:00:22.7]} 24... Nh6 {[%clk
0:00:13.5]} 25. Rfe1 {[%clk 0:00:17.2]} 25... Nf5 {[%clk 0:00:13.5]} 26. Bf2
{[%clk 0:00:17.8]} 26... h5 {[%clk 0:00:09.6]} 27. Kg1 {[%clk 0:00:17.7]} 27...
Bg3 {[%clk 0:00:06.6]} 28. b4 {[%clk 0:00:16.7]} 28... Bxf2+ {[%clk 0:00:06.8]}
29. Kxf2 {[%clk 0:00:17.4]} 29... Kd6 {[%clk 0:00:04.9]} 30. Rcd1 {[%clk
0:00:17.6]} 30... h4 {[%clk 0:00:04.5]} 31. a3 {[%clk 0:00:17.6]} 31... Rh8
{[%clk 0:00:04.9]} 32. Rc1 {[%clk 0:00:15.1]} 32... h3 {[%clk 0:00:04.8]} 33. g4
{[%clk 0:00:15.6]} 33... Nh6 {[%clk 0:00:04.4]} 34. Kg3 {[%clk 0:00:16.1]} 34...
Nf7 {[%clk 0:00:04.3]} 35. Rh1 {[%clk 0:00:15.8]} 35... Ng5 {[%clk 0:00:04.7]}
36. Bc2 {[%clk 0:00:12.9]} 36... Rcf8 {[%clk 0:00:04.1]} 37. Rcf1 {[%clk
0:00:12]} 37... e5 {[%clk 0:00:03.7]} 38. Bxg6 {[%clk 0:00:11]} 38... d4 {[%clk
0:00:03.2]} 39. Bf5 {[%clk 0:00:10.1]} 39... Rh6 {[%clk 0:00:03]} 40. f4 {[%clk
0:00:10.4]} 40... exf4+ {[%clk 0:00:02.9]} 41. Kxf4 {[%clk 0:00:11.3]} 41...
Ne6+ {[%clk 0:00:02.5]} 42. Ke4 {[%clk 0:00:11.7]} 42... Ng5+ {[%clk 0:00:02.7]}
43. Kxd4 {[%clk 0:00:12.2]} 43... h2 {[%clk 0:00:02.8]} 44. Kc4 {[%clk
0:00:12.3]} 44... Rfh8 {[%clk 0:00:02.9]} 45. Rd1+ {[%clk 0:00:11.7]} 45... Ke7
{[%clk 0:00:02.8]} 46. Rd7+ {[%clk 0:00:12.1]} 46... Kf6 {[%clk 0:00:02.7]} 47.
Rd6+ {[%clk 0:00:12.1]} 47... Ke5 {[%clk 0:00:03.2]} 48. Rdd1 {[%clk 0:00:11.9]}
48... Nf3 {[%clk 0:00:03]} 49. Rd3 {[%clk 0:00:10.6]} 49... Kf4 {[%clk
0:00:03.4]} 50. Rf1 {[%clk 0:00:10.1]} 50... h1=Q {[%clk 0:00:03.3]} 51. Rdd1
{[%clk 0:00:06.9]} 51... Qxf1+ {[%clk 0:00:02.8]} 52. Rxf1 {[%clk 0:00:07.8]}
52... Rh1 {[%clk 0:00:02.4]} 53. Rf2 {[%clk 0:00:07.5]} 53... R8h2 {[%clk
0:00:03]} 54. Rxf3+ {[%clk 0:00:07.2]} 54... Kxf3 {[%clk 0:00:02.9]} 55. Kc5
{[%clk 0:00:08.1]} 55... Rc1+ {[%clk 0:00:03]} 56. Kb6 {[%clk 0:00:07.9]} 56...
Ra2 {[%clk 0:00:03.8]} 57. Kxa6 {[%clk 0:00:08]} 57... Rxa3+ {[%clk 0:00:04.3]}
58. Kb6 {[%clk 0:00:08.9]} 58... Rb3 {[%clk 0:00:04.6]} 59. b5 {[%clk
0:00:09.1]} 59... Rxb5+ {[%clk 0:00:04.8]} 60. Kc7 {[%clk 0:00:10]} 60... Re5
{[%clk 0:00:04]} 61. Bd7 {[%clk 0:00:10.9]} 61... Kf4 {[%clk 0:00:04.3]} 62. g5
{[%clk 0:00:11.8]} 62... Rxg5 {[%clk 0:00:04.6]} 63. Kb6 {[%clk 0:00:10.7]}
63... Rg7 {[%clk 0:00:04.7]} 64. Bc8 {[%clk 0:00:11.6]} 64... Ke5 {[%clk
0:00:04.8]} 65. Ba6 {[%clk 0:00:12.5]} 65... Rb1+ {[%clk 0:00:05.3]} 66. Ka5
{[%clk 0:00:12]} 66... Ra1+ {[%clk 0:00:05.5]} 67. Kb6 {[%clk 0:00:12.3]} 67...
Rxa6+ {[%clk 0:00:06.4]} 68. Kxa6 {[%clk 0:00:11.7]} 68... c5 {[%clk 0:00:07.2]}
69. Kb6 {[%clk 0:00:12.6]} 69... Kd4 {[%clk 0:00:07.8]} 70. Kb5 {[%clk
0:00:13.5]} 70... c4 {[%clk 0:00:08.2]} 71. Kb4 {[%clk 0:00:14.4]} 71... Rb7+
{[%clk 0:00:08.5]} 72. Ka5 {[%clk 0:00:13.9]} 72... c3 {[%clk 0:00:09.3]} 73.
Ka6 {[%clk 0:00:14.7]} 73... Rb1 {[%clk 0:00:09.4]} 74. Ka7 {[%clk 0:00:15.6]}
74... c2 {[%clk 0:00:10.2]} 75. Ka8 {[%clk 0:00:16.5]} 75... c1=Q {[%clk
0:00:10.9]} 76. Ka7 {[%clk 0:00:17.4]} 76... Qa3# {[%clk 0:00:11.5]} 0-1

[Event "Early-Titled-Tuesday-Blitz-December-26-2023"]
[Site "Chess.com"]
[Date "2023.12.26"]
[Round "10"]
[White "Iball95"]
[Black "snowlord"]
[Result "1-0"]
[WhiteElo "2825"]
[BlackElo "2904"]
[TimeControl "180+1"]
[EndTime "9:57:15 PST"]
[Termination "Iball95 won on time"]

1. e4 {[%clk 0:03:00.9]} 1... Nc6 {[%clk 0:02:51.8]} 2. Nc3 {[%clk 0:03:00.3]}
2... d6 {[%clk 0:02:51.6]} 3. d4 {[%clk 0:02:58.8]} 3... Nf6 {[%clk 0:02:52.2]}
4. Nf3 {[%clk 0:02:58.4]} 4... g6 {[%clk 0:02:51.8]} 5. h3 {[%clk 0:02:54.6]}
5... Bg7 {[%clk 0:02:52]} 6. Be2 {[%clk 0:02:53.5]} 6... O-O {[%clk 0:02:52.5]}
7. O-O {[%clk 0:02:54.1]} 7... a6 {[%clk 0:02:49.9]} 8. a4 {[%clk 0:02:53.5]}
8... e6 {[%clk 0:02:43.8]} 9. Be3 {[%clk 0:02:52.6]} 9... b6 {[%clk 0:02:44.2]}
10. Qd2 {[%clk 0:02:51.9]} 10... Bb7 {[%clk 0:02:43.9]} 11. Rad1 {[%clk
0:02:49.3]} 11... Ne7 {[%clk 0:02:40.1]} 12. e5 {[%clk 0:02:46.2]} 12... dxe5
{[%clk 0:02:32.8]} 13. Nxe5 {[%clk 0:02:43.8]} 13... Nf5 {[%clk 0:02:30]} 14.
Bf3 {[%clk 0:02:40.5]} 14... Bxf3 {[%clk 0:02:26.6]} 15. Nxf3 {[%clk 0:02:41.4]}
15... Nxe3 {[%clk 0:02:07.7]} 16. Qxe3 {[%clk 0:02:42.3]} 16... Nd5 {[%clk
0:01:56.5]} 17. Nxd5 {[%clk 0:02:41.8]} 17... Qxd5 {[%clk 0:01:57.4]} 18. b3
{[%clk 0:02:29.7]} 18... Rad8 {[%clk 0:01:54]} 19. Rfe1 {[%clk 0:02:28.7]} 19...
Rd6 {[%clk 0:01:48.9]} 20. Rd3 {[%clk 0:02:02]} 20... Rfd8 {[%clk 0:01:47.3]}
21. Red1 {[%clk 0:02:01.7]} 21... Qc6 {[%clk 0:01:28.1]} 22. Qe2 {[%clk
0:01:54.8]} 22... Qa8 {[%clk 0:01:18.6]} 23. h4 {[%clk 0:01:51.4]} 23... h6
{[%clk 0:01:18.4]} 24. R1d2 {[%clk 0:01:43.7]} 24... b5 {[%clk 0:01:10.9]} 25.
axb5 {[%clk 0:01:44.6]} 25... axb5 {[%clk 0:01:11.8]} 26. Rd1 {[%clk 0:01:32.7]}
26... Qa5 {[%clk 0:00:55.5]} 27. g3 {[%clk 0:01:18.5]} 27... Qb4 {[%clk
0:00:52.8]} 28. Qd2 {[%clk 0:01:12.9]} 28... Qxd2 {[%clk 0:00:46.4]} 29. R1xd2
{[%clk 0:01:13.8]} 29... b4 {[%clk 0:00:41.3]} 30. Kf1 {[%clk 0:01:09.4]} 30...
Rd5 {[%clk 0:00:33.9]} 31. Ke2 {[%clk 0:01:09.2]} 31... Kf8 {[%clk 0:00:34.3]}
32. Rd1 {[%clk 0:01:06.3]} 32... Ra8 {[%clk 0:00:32.5]} 33. c4 {[%clk
0:00:59.6]} 33... bxc3 {[%clk 0:00:33.4]} 34. Rxc3 {[%clk 0:00:59.7]} 34... Ra7
{[%clk 0:00:29.9]} 35. Rdc1 {[%clk 0:00:58.4]} 35... Bxd4 {[%clk 0:00:20.2]} 36.
Rxc7 {[%clk 0:00:48.9]} 36... Ra2+ {[%clk 0:00:20]} 37. R1c2 {[%clk 0:00:47.4]}
37... Rxc2+ {[%clk 0:00:20.5]} 38. Rxc2 {[%clk 0:00:47.8]} 38... Bb6 {[%clk
0:00:21]} 39. Rc4 {[%clk 0:00:41.9]} 39... Rb5 {[%clk 0:00:19.3]} 40. b4 {[%clk
0:00:40.9]} 40... Ke7 {[%clk 0:00:16.7]} 41. Nd2 {[%clk 0:00:26.9]} 41... Re5+
{[%clk 0:00:14.3]} 42. Re4 {[%clk 0:00:26.6]} 42... Rd5 {[%clk 0:00:13]} 43. f3
{[%clk 0:00:26.7]} 43... Bc7 {[%clk 0:00:12.7]} 44. f4 {[%clk 0:00:22.3]} 44...
Rb5 {[%clk 0:00:11.7]} 45. Kd3 {[%clk 0:00:20.5]} 45... Bd6 {[%clk 0:00:12.2]}
46. Kc3 {[%clk 0:00:20.2]} 46... Rb8 {[%clk 0:00:12.5]} 47. Nc4 {[%clk
0:00:19.4]} 47... Bxb4+ {[%clk 0:00:12]} 48. Kd3 {[%clk 0:00:19.9]} 48... Bd6
{[%clk 0:00:12.4]} 49. Nxd6 {[%clk 0:00:17.5]} 49... Kxd6 {[%clk 0:00:13.3]} 50.
Kc4 {[%clk 0:00:12.1]} 50... h5 {[%clk 0:00:11.8]} 51. Rd4+ {[%clk 0:00:12.3]}
51... Kc6 {[%clk 0:00:10.8]} 52. Rd3 {[%clk 0:00:12.2]} 52... Ra8 {[%clk
0:00:09.7]} 53. Rb3 {[%clk 0:00:06.8]} 53... Ra4+ {[%clk 0:00:09.2]} 54. Kd3
{[%clk 0:00:06.5]} 54... Ra1 {[%clk 0:00:08]} 55. Ke4 {[%clk 0:00:06.3]} 55...
Re1+ {[%clk 0:00:05.8]} 56. Kf3 {[%clk 0:00:06.2]} 56... f6 {[%clk 0:00:04.9]}
57. Rd3 {[%clk 0:00:05.5]} 57... e5 {[%clk 0:00:04.4]} 58. fxe5 {[%clk
0:00:06.4]} 58... Rxe5 {[%clk 0:00:04.9]} 59. Rd8 {[%clk 0:00:06.9]} 59... g5
{[%clk 0:00:02.6]} 60. hxg5 {[%clk 0:00:06.7]} 60... fxg5 {[%clk 0:00:03.5]} 61.
Rh8 {[%clk 0:00:06.9]} 61... g4+ {[%clk 0:00:02.8]} 62. Kf4 {[%clk 0:00:07.8]}
62... Kd5 {[%clk 0:00:02.6]} 63. Rd8+ {[%clk 0:00:07.5]} 1-0